bitfinex/quotes_SOLUSD_20240616
["timestamp","ask_amount","ask_price","bid_price","bid_amount"]
[1718512786107,5.72,143.47,143.43,0.68]
[1718512787285,8.2984,143.5,143.41,15.7554]
[1718512787286,5.72,143.5,143.41,15.7554]
[1718512787494,5.72,143.45,143.41,15.7554]
[1718512788604,5.72,143.44,143.41,15.7554]
[1718512788927,5.72,143.44,143.42,0.17]
[1718512789596,5.72,143.44,143.41,15.7554]
[1718512789791,5.72,143.42,143.39,6.4971]
[1718512792636,5.72,143.42,143.38,16.3531]
[1718512792843,5.72,143.42,143.39,0.17]
[1718512793130,5.72,143.42,143.38,16.1831]
[1718512793435,5.72,143.41,143.38,16.1831]
[1718512794206,5.72,143.4,143.35,6.013]
[1718512794408,5.72,143.39,143.35,6.013]
[1718512795312,5.72,143.4,143.35,6.013]
[1718512795630,5.72,143.4,143.36,0.51]
[1718512796219,2.5792,143.46,143.36,0.51]
[1718512796426,5.72,143.4,143.36,0.51]
[1718512797909,5.72,143.41,143.37,0.17]
[1718512799411,5.72,143.42,143.37,0.17]
[1718512801816,15.0331,143.41,143.35,5.72]
[1718512802017,15.0331,143.41,143.32,6.013]
[1718512802018,5.72,143.37,143.32,6.013]
[1718512804125,15.0331,143.41,143.32,11.733]
[1718512804325,5.72,143.39,143.33,5.72]
[1718512804528,5.72,143.39,143.34,0.68]
[1718512804923,7.28177887,143.42,143.35,16.3622]
[1718512805138,21.0904,143.44,143.37,0.17]
[1718512805139,5.72,143.41,143.37,0.17]
[1718512808330,5.72,143.42,143.37,0.17]
[1718512808549,5.72,143.41,143.37,0.17]
[1718512810341,5.72,143.42,143.37,0.17]
[1718512811156,15.01764044,143.46,143.37,0.17]
[1718512811343,5.72,143.42,143.37,0.17]
[1718512813155,5.72,143.43,143.37,0.17]
[1718512814568,5.72,143.43,143.37,6.4465]
[1718512814768,5.72,143.43,143.38,0.51]
[1718512815956,23.2173,143.43,143.36,5.72]
[1718512816264,23.2173,143.43,143.35,16.1922]
[1718512816265,5.72,143.37,143.35,16.1922]
[1718512817563,5.72,143.37,143.36,0.17]
[1718512819570,5.72,143.38,143.36,0.17]
[1718512819870,5.72,143.38,143.35,16.1922]
[1718512820045,5.72,143.37,143.35,16.1922]
[1718512822266,7.7398,143.42,143.35,16.1922]
[1718512822459,5.72,143.37,143.35,16.1922]
[1718512826872,5.72,143.38,143.35,16.1922]
[1718512832059,5.72,143.38,143.33,6.2765]
[1718512832258,5.72,143.37,143.33,6.2765]
[1718512832461,25.7992,143.42,143.34,0.17]
[1718512832656,5.72,143.37,143.34,0.51]
[1718512834045,5.72,143.37,143.33,6.2765]
[1718512834465,5.72,143.37,143.34,0.17]
[1718512836474,9.86199675,143.42,143.34,0.17]
[1718512836647,5.72,143.38,143.34,0.51]
[1718512845476,5.72,143.37,143.34,0.51]
[1718512848794,5.72,143.38,143.34,0.51]
[1718512848996,5.72,143.39,143.34,0.51]
[1718512852791,5.72,143.39,143.35,0.17]
[1718512852969,7.28209675,143.42,143.35,0.51]
[1718512853166,5.72,143.41,143.36,0.17]
[1718512853365,7.28209675,143.42,143.36,0.51]
[1718512853569,7.28209675,143.42,143.37,0.17]
[1718512853776,5.72,143.42,143.37,16.5601]
[1718512853983,5.72,143.42,143.38,0.17]
[1718512857205,5.72,143.41,143.38,0.17]
[1718512859503,25.793,143.45,143.38,0.17]
[1718512859705,5.72,143.41,143.38,0.17]
[1718512860305,5.72,143.42,143.38,0.17]
[1718512860810,2.5795,143.44,143.38,0.17]
[1718512860811,5.72,143.41,143.38,0.17]
[1718512863427,2.5793,143.45,143.38,0.17]
[1718512863428,5.72,143.42,143.38,0.17]
[1718512865118,7.28005105,143.47,143.39,0.17]
[1718512865423,23.2097,143.48,143.39,0.17]
[1718512865424,5.72,143.45,143.39,0.51]
[1718512865596,5.72,143.45,143.4,0.17]
[1718512865795,5.72,143.45,143.4,0.51]
[1718512868008,2.5789,143.48,143.41,0.17]
[1718512868208,5.72,143.45,143.41,0.51]
[1718512868426,5.72,143.45,143.42,0.17]
[1718512870318,5.72,143.46,143.42,0.51]
[1718512870508,5.72,143.46,143.42,0.34]
[1718512870710,5.72,143.45,143.42,0.34]
[1718512871425,7.27843301,143.49,143.43,0.17]
[1718512871606,19.0888,143.5,143.43,0.17]
[1718512871607,19.0888,143.5,143.43,0.34]
[1718512871795,5.72,143.47,143.43,0.34]
[1718512872418,5.72,143.47,143.44,0.17]
[1718512872610,5.72,143.47,143.44,0.34]
[1718512873035,7.27713845,143.52,143.45,0.17]
[1718512873204,5.72,143.5,143.45,0.51]
[1718512873418,5.72,143.51,143.46,16.2201]
[1718512873603,5.72,143.51,143.47,0.34]
[1718512874308,2.5777,143.54,143.47,0.34]
[1718512874525,5.72,143.51,143.48,0.17]
[1718512874732,5.72,143.52,143.48,0.34]
[1718512875312,2.5777,143.54,143.49,0.17]
[1718512875620,5.72,143.52,143.49,0.17]
[1718512877204,7.733,143.54,143.49,0.17]
[1718512877205,5.72,143.51,143.49,0.17]
[1718512880131,7.7328,143.55,143.49,0.17]
[1718512880132,5.72,143.52,143.49,0.17]
[1718512882432,5.72,143.51,143.49,0.17]
[1718512884820,2.5776,143.55,143.49,0.17]
[1718512885028,5.72,143.52,143.49,0.17]
[1718512890217,5.72,143.52,143.48,0.17]
[1718512890412,5.72,143.49,143.46,16.0501]
[1718512891637,5.72,143.48,143.46,16.0501]
[1718512891841,13.65553191,143.54,143.46,16.0501]
[1718512892137,5.72,143.48,143.46,16.0501]
[1718512892717,5.72,143.47,143.43,6.4878]
[1718512892918,5.72,143.48,143.44,0.17]
[1718512893340,5.72,143.49,143.44,0.34]
[1718512893844,5.72,143.49,143.45,0.34]
[1718512894013,5.72,143.48,143.45,0.34]
[1718512899338,41.5653,143.53,143.45,0.34]
[1718512899339,5.72,143.49,143.45,0.34]
[1718512900341,5.72,143.48,143.45,0.34]
[1718512906761,38.9869,143.53,143.45,0.34]
[1718512906762,15.7859,143.53,143.45,0.34]
[1718512906937,5.72,143.5,143.46,0.34]
[1718512907138,5.72,143.5,143.47,0.17]
[1718512908634,15.7859,143.53,143.47,0.17]
[1718512908859,5.72,143.5,143.47,0.17]
[1718512909856,15.7859,143.53,143.47,0.17]
[1718512910056,5.72,143.5,143.47,0.17]
[1718512912281,5.72,143.5,143.47,0.34]
[1718512912654,5.72,143.5,143.48,0.34]
[1718512913556,14.113,143.54,143.48,0.34]
[1718512913879,5.72,143.5,143.48,0.34]
[1718512917187,5.72,143.5,143.48,0.17]
[1718512917480,5.72,143.5,143.47,0.17]
[1718512917682,5.72,143.5,143.47,0.34]
[1718512922580,5.72,143.5,143.46,0.17]
[1718512922766,5.72,143.5,143.46,0.51]
[1718512923082,5.72,143.49,143.46,0.17]
[1718512923260,5.72,143.49,143.43,6.4878]
[1718512923584,5.72,143.48,143.44,0.17]
[1718512924264,5.72,143.48,143.43,6.4878]
[1718512924868,15.4695,143.51,143.43,6.4878]
[1718512924869,2.5783,143.51,143.43,6.4878]
[1718512925078,5.72,143.48,143.43,6.4878]
[1718512925583,5.72,143.48,143.44,0.34]
[1718512930183,15.0723,143.53,143.45,0.17]
[1718512930502,5.72,143.51,143.45,6.06]
[1718512930681,5.72,143.51,143.46,0.34]
[1718512931570,15.0723,143.53,143.46,0.34]
[1718512931801,5.72,143.51,143.47,0.17]
[1718512933408,5.72,143.5,143.47,0.17]
[1718512935198,5.72,143.51,143.47,0.17]
[1718512935798,8.9577,143.54,143.47,0.34]
[1718512936012,5.72,143.51,143.48,0.17]
[1718512937799,8.9577,143.54,143.48,0.17]
[1718512937997,5.72,143.51,143.48,0.17]
[1718512940418,5.72,143.51,143.48,0.34]
[1718512940594,5.72,143.52,143.49,0.17]
[1718512940994,5.72,143.51,143.49,0.17]
[1718512941508,7.27569169,143.55,143.5,0.17]
[1718512941717,7.27569169,143.55,143.5,0.51]
[1718512942013,6.5285,143.58,143.51,0.17]
[1718512942014,2.5771,143.57,143.51,0.17]
[1718512942226,5.72,143.55,143.51,0.51]
[1718512942805,2.5771,143.58,143.52,0.17]
[1718512943005,5.72,143.56,143.52,0.51]
[1718512943225,5.72,143.56,143.53,0.17]
[1718512943391,5.72,143.56,143.53,0.51]
[1718512944894,7.7307,143.59,143.53,0.51]
[1718512945222,5.72,143.56,143.53,0.51]
[1718512946298,22.55626394,143.6,143.53,0.51]
[1718512946502,5.72,143.57,143.53,0.51]
[1718512946710,5.72,143.56,143.53,0.51]
[1718512947793,15.4606,143.59,143.53,0.51]
[1718512947992,5.72,143.56,143.53,0.51]
[1718512948891,5.72,143.55,143.53,0.51]
[1718512950302,2.5769,143.58,143.53,0.51]
[1718512950303,5.72,143.56,143.53,0.51]
[1718512950702,15.00346394,143.6,143.53,0.51]
[1718512950913,5.72,143.57,143.53,0.51]
[1718512951318,5.72,143.58,143.53,0.51]
[1718512951900,5.72,143.57,143.53,0.51]
[1718512953099,23.1896,143.6,143.54,0.17]
[1718512953100,2.5767,143.6,143.54,0.17]
[1718512953306,5.72,143.59,143.54,0.34]
[1718512953549,5.72,143.59,143.55,0.34]
[1718512953829,5.72,143.58,143.55,0.34]
[1718512958429,5.72,143.57,143.55,0.34]
[1718512961309,25.7666,143.6,143.55,0.34]
[1718512961638,5.72,143.57,143.55,0.34]
[1718512965729,15.00074185,143.62,143.55,0.34]
[1718512965936,5.72,143.58,143.55,0.34]
[1718512969436,25.7634,143.62,143.55,0.34]
[1718512969641,5.72,143.58,143.55,0.34]
[1718512975121,5.72,143.56,143.5,37.0055]
[1718512975425,5.72,143.55,143.5,37.0055]
[1718512976543,5.72,143.55,143.51,0.34]
[1718512976727,5.72,143.55,143.52,0.34]
[1718512977035,5.72,143.55,143.53,0.34]
[1718512979117,5.72,143.56,143.53,0.34]
[1718512979313,5.72,143.57,143.53,0.34]
[1718512980026,7.27210612,143.62,143.54,0.34]
[1718512980227,5.72,143.58,143.55,0.34]
[1718512981747,5.72,143.58,143.55,0.17]
[1718512981955,5.72,143.58,143.54,0.17]
[1718512982250,5.72,143.57,143.53,0.68]
[1718512984848,5.72,143.58,143.53,0.68]
[1718512997752,5.72,143.57,143.53,0.68]
[1718512998261,25.7644,143.61,143.53,0.68]
[1718512998475,5.72,143.57,143.53,0.68]
[1718512999846,9.84840612,143.62,143.53,7.0189]
[1718513000056,5.72,143.58,143.53,7.0189]
[1718513000268,5.72,143.59,143.53,7.0189]
[1718513002549,2.5762,143.62,143.55,0.17]
[1718513002760,5.72,143.59,143.55,0.68]
[1718513003560,2.5762,143.62,143.55,0.68]
[1718513003848,5.72,143.59,143.55,0.68]
[1718513005557,25.7609,143.63,143.55,0.68]
[1718513005746,5.72,143.6,143.55,0.68]
[1718513007366,7.7283,143.63,143.55,0.68]
[1718513007675,5.72,143.6,143.55,0.68]
[1718513009750,5.72,143.61,143.57,0.17]
[1718513009964,5.72,143.61,143.57,0.68]
[1718513011363,5.72,143.6,143.57,0.68]
[1718513012258,5.72,143.61,143.57,0.68]
[1718513012560,5.72,143.61,143.57,0.51]
[1718513012761,5.72,143.6,143.57,0.51]
[1718513013362,5.72,143.59,143.57,0.51]
[1718513015987,7.27075702,143.64,143.57,0.51]
[1718513016196,5.72,143.62,143.57,0.51]
[1718513017780,5.72,143.62,143.58,0.17]
[1718513017982,5.72,143.62,143.58,0.68]
[1718513018183,5.72,143.6,143.57,0.34]
[1718513021388,2.5762,143.63,143.57,0.34]
[1718513024282,48.6398,143.64,143.57,0.34]
[1718513026687,30.608,143.64,143.57,0.34]
[1718513026893,38.3356,143.64,143.57,0.34]
[1718513027994,30.608,143.64,143.57,0.34]
[1718513029281,38.3357,143.64,143.57,0.34]
[1718513029866,2.576,143.63,143.57,0.34]
[1718513034570,7.7281,143.63,143.57,0.34]
[1718513035090,40.9112,143.64,143.54,15.3241]
[1718513035091,5.72,143.58,143.54,15.3241]
[1718513035269,5.72,143.57,143.54,15.3241]
[1718513042399,5.72,143.56,143.54,15.3241]
[1718513045396,5.72,143.57,143.54,15.3241]
[1718513046414,5.72,143.58,143.54,15.3241]
[1718513046585,5.72,143.58,143.55,0.51]
[1718513047613,9.84820375,143.62,143.55,0.51]
[1718513047906,5.72,143.58,143.55,0.51]
[1718513049807,22.72930375,143.62,143.56,0.17]
[1718513049808,7.27190375,143.62,143.56,0.17]
[1718513050103,5.72,143.6,143.56,0.17]
[1718513050398,5.72,143.61,143.56,0.17]
[1718513050576,5.72,143.62,143.56,5.89]
[1718513050777,5.72,143.62,143.57,0.51]
[1718513050994,5.72,143.61,143.57,0.51]
[1718513051307,25.7572,143.65,143.57,0.51]
[1718513051521,5.72,143.61,143.57,0.51]
[1718513051989,5.72,143.61,143.57,100.51]
[1718513052305,2.5758,143.65,143.58,0.17]
[1718513052306,5.72,143.62,143.58,0.17]
[1718513052890,5.72,143.61,143.58,0.17]
[1718513057286,2.5757,143.65,143.58,0.17]
[1718513057494,5.72,143.62,143.58,0.17]
[1718513058190,5.72,143.61,143.58,0.17]
[1718513064483,5.72,143.62,143.58,0.17]
[1718513067015,2.576,143.64,143.57,0.51]
[1718513067192,5.72,143.59,143.57,0.51]
[1718513068520,5.72,143.58,143.57,0.17]
[1718513068682,5.72,143.58,143.54,15.3241]
[1718513068888,5.72,143.57,143.54,15.3241]
[1718513069413,2.5763,143.62,143.54,15.3241]
[1718513069585,5.72,143.57,143.54,15.3241]
[1718513069991,5.72,143.57,143.55,0.34]
[1718513070289,5.72,143.57,143.55,0.68]
[1718513071720,5.72,143.58,143.55,0.68]
[1718513073103,7.7282,143.63,143.55,0.68]
[1718513073319,5.72,143.59,143.55,0.68]
[1718513075621,7.7282,143.63,143.55,0.68]
[1718513075791,5.72,143.59,143.55,0.68]
[1718513078913,7.26530368,143.62,143.55,0.68]
[1718513079096,5.72,143.59,143.55,0.68]
[1718513079295,7.26530368,143.62,143.55,0.68]
[1718513079514,5.72,143.59,143.55,0.68]
[1718513083226,7.30242911,143.7,143.57,0.17]
[1718513083227,5.1515,143.65,143.57,0.17]
[1718513083524,5.72,143.61,143.57,0.68]
[1718513087610,8.2958,143.64,143.57,0.68]
[1718513087809,22.88,143.64,143.57,0.68]
[1718513088136,5.72,143.62,143.57,0.68]
[1718513095026,15.4544,143.65,143.57,0.68]
[1718513095027,14.99069384,143.66,143.59,0.17]
[1718513095228,5.72,143.63,143.59,0.68]
[1718513095629,5.72,143.64,143.59,0.68]
[1718513096757,5.72,143.63,143.59,0.68]
[1718513100428,5.72,143.62,143.59,0.68]
[1718513102136,7.26389384,143.66,143.59,0.68]
[1718513102340,5.72,143.63,143.59,0.68]
[1718513102935,2.5757,143.65,143.59,0.68]
[1718513103149,5.72,143.63,143.59,0.68]
[1718513103355,14.99049384,143.66,143.59,0.68]
[1718513103676,5.72,143.64,143.59,0.68]
[1718513105150,9.83949384,143.66,143.59,0.68]
[1718513105358,5.72,143.64,143.59,0.68]
[1718513106862,5.72,143.63,143.59,0.68]
[1718513107862,14.99049384,143.66,143.59,0.68]
[1718513108037,5.72,143.63,143.59,0.68]
[1718513110859,5.72,143.64,143.59,0.68]
[1718513111048,7.26389384,143.66,143.59,0.68]
[1718513111247,5.72,143.65,143.59,0.68]
[1718513112655,5.72,143.64,143.59,0.68]
[1718513113165,7.26389384,143.66,143.59,0.68]
[1718513113374,7.26389384,143.66,143.61,0.17]
[1718513113548,5.72,143.65,143.61,0.68]
[1718513113747,0.8432194,143.68,143.61,0.68]
[1718513113969,5.72,143.65,143.61,0.68]
[1718513117868,8.5688194,143.68,143.61,0.68]
[1718513118074,5.72,143.65,143.61,0.68]
[1718513121266,5.72,143.66,143.61,0.68]
[1718513122760,5.72,143.66,143.62,100.0]
[1718513122948,0.8432194,143.68,143.63,0.68]
[1718513123350,6.5632194,143.68,143.63,0.68]
[1718513124279,5.72,143.67,143.63,0.68]
[1718513126682,0.8432194,143.68,143.63,0.68]
[1718513126852,5.72,143.67,143.63,0.68]
[1718513128272,6.5632194,143.68,143.63,0.68]
[1718513129881,0.8432194,143.68,143.63,0.68]
[1718513130060,6.5632194,143.68,143.63,0.68]
[1718513133087,0.8432194,143.68,143.65,0.17]
[1718513133378,6.5632194,143.68,143.65,0.68]
[1718513139480,0.8432194,143.68,143.65,0.68]
[1718513140693,0.8432194,143.68,143.67,0.17]
[1718513140895,0.8432194,143.68,143.67,0.68]
[1718513143785,0.8432194,143.68,143.67,0.51]
[1718513144004,0.8432194,143.68,143.67,0.17]
[1718513144209,0.8432194,143.68,143.64,100.0]
[1718513145594,0.8432194,143.68,143.65,0.68]
[1718513151103,0.8432194,143.68,143.66,100.0]
[1718513151411,0.8432194,143.68,143.67,0.68]
[1718513154596,7.26092364,143.75,143.69,0.17]
[1718513154801,5.72,143.74,143.69,0.68]
[1718513155387,5.72,143.73,143.69,0.68]
[1718513157604,19.2085,143.76,143.69,0.68]
[1718513157910,5.72,143.73,143.69,0.68]
[1718513159106,16.6348,143.76,143.69,0.68]
[1718513159293,5.72,143.73,143.69,0.68]
[1718513160104,7.26103702,143.77,143.71,0.17]
[1718513160298,6.0988,143.78,143.71,0.68]
[1718513160479,5.72,143.76,143.71,0.68]
[1718513160685,6.0988,143.78,143.71,0.68]
[1718513161083,5.72,143.76,143.71,0.68]
[1718513161574,6.0988,143.78,143.71,0.68]
[1718513161778,5.72,143.76,143.71,0.68]
[1718513162404,5.72,143.75,143.71,0.68]
[1718513164110,6.0988,143.78,143.71,0.68]
[1718513164410,5.72,143.75,143.71,0.68]
[1718513165283,15.8935,143.8,143.73,0.17]
[1718513165493,5.72,143.76,143.73,0.68]
[1718513165683,25.4534,143.78,143.7,16.4353]
[1718513165904,5.72,143.72,143.67,6.0988]
[1718513166096,29.2596,143.78,143.68,100.0]
[1718513166297,5.72,143.73,143.68,100.0]
[1718513167096,5.72,143.73,143.66,22.11087297]
[1718513167097,5.72,143.73,143.66,122.11087297]
[1718513167298,5.72,143.73,143.67,5.72]
[1718513167609,5.72,143.73,143.68,100.0]
[1718513168006,7.7207,143.77,143.68,100.0]
[1718513168307,5.72,143.73,143.69,0.17]
[1718513168613,5.72,143.73,143.69,0.68]
[1718513168807,15.4395,143.79,143.71,0.17]
[1718513169106,2.5733,143.79,143.71,0.68]
[1718513169411,5.72,143.76,143.71,0.68]
[1718513174513,5.72,143.74,143.71,0.68]
[1718513175331,7.7196,143.79,143.71,0.68]
[1718513175637,5.72,143.75,143.71,0.68]
[1718513176831,5.72,143.74,143.71,0.68]
[1718513177335,41.6245,143.8,143.71,0.68]
[1718513177534,18.4666,143.8,143.71,0.68]
[1718513177705,5.72,143.76,143.71,0.68]
[1718513182921,5.72,143.75,143.71,0.68]
[1718513183638,5.72,143.78,143.71,0.68]
[1718513183938,5.72,143.78,143.66,116.1099]
[1718513183939,5.72,143.72,143.66,116.1099]
[1718513184116,7.722,143.75,143.66,116.1099]
[1718513184117,5.72,143.71,143.66,116.1099]
[1718513184621,5.72,143.71,143.66,137.0299]
[1718513185135,5.72,143.72,143.68,100.0]
[1718513185335,5.72,143.72,143.67,0.17]
[1718513185534,5.72,143.72,143.67,0.68]
[1718513186410,5.72,143.71,143.67,0.68]
[1718513186752,5.72,143.72,143.67,0.68]
[1718513187423,5.72,143.73,143.67,6.4]
[1718513189219,5.72,143.72,143.67,0.68]
[1718513190452,5.72,143.73,143.67,0.68]
[1718513190945,5.72,143.72,143.67,0.68]
[1718513191157,5.72,143.7,143.66,116.1099]
[1718513191346,5.72,143.69,143.66,116.1099]
[1718513191652,23.1656,143.75,143.66,116.1099]
[1718513191867,5.72,143.7,143.66,116.1099]
[1718513192530,2.574,143.75,143.67,0.51]
[1718513192751,24.3754,143.76,143.68,0.17]
[1718513192931,5.72,143.71,143.68,0.17]
[1718513195343,5.72,143.7,143.68,0.17]
[1718513196052,7.26312304,143.74,143.68,0.17]
[1718513196338,5.72,143.71,143.68,0.17]
[1718513197266,5.72,143.7,143.68,0.17]
[1718513197567,5.72,143.7,143.67,0.51]
[1718513199969,5.72,143.7,143.64,5.72]
[1718513200156,22.1475,143.72,143.62,106.312]
[1718513200157,5.72,143.68,143.62,106.312]
[1718513200488,5.72,143.68,143.62,112.032]
[1718513201467,5.72,143.68,143.63,0.34]
[1718513201673,5.72,143.68,143.64,0.34]
[1718513203072,5.72,143.71,143.63,0.17]
[1718513203377,5.72,143.71,143.61,15.0098]
[1718513203378,5.72,143.66,143.61,15.0098]
[1718513204567,5.72,143.66,143.62,0.68]
[1718513204770,5.72,143.64,143.61,15.0098]
[1718513204969,5.72,143.64,143.58,106.3512]
[1718513204970,5.72,143.64,143.58,111.97485322]
[1718513205479,5.72,143.64,143.58,138.61485322]
[1718513205691,5.72,143.64,143.6,100.0]
[1718513206182,5.72,143.65,143.61,0.68]
[1718513206376,5.72,143.64,143.61,0.68]
[1718513208179,5.72,143.63,143.61,0.51]
[1718513211676,5.72,143.64,143.61,0.51]
[1718513216185,15.9581,143.67,143.61,0.51]
[1718513216381,5.72,143.64,143.61,0.51]
[1718513219399,5.72,143.63,143.61,0.51]
[1718513220270,5.72,143.63,143.58,0.17]
[1718513220478,5.72,143.62,143.58,0.51]
[1718513220786,5.72,143.62,143.59,0.17]
[1718513221097,31.4105,143.67,143.59,0.51]
[1718513221098,5.72,143.63,143.59,0.51]
[1718513222997,5.72,143.62,143.59,0.51]
[1718513223366,41.7118,143.67,143.57,15.0098]
[1718513223367,5.72,143.6,143.57,15.0098]
[1718513223687,5.72,143.6,143.58,0.17]
[1718513227907,5.72,143.6,143.58,0.34]
[1718513228408,9.83745212,143.66,143.58,0.34]
[1718513228588,5.72,143.61,143.58,0.34]
[1718513228787,5.72,143.62,143.58,0.34]
[1718513229205,5.72,143.61,143.58,0.34]
[1718513232394,5.72,143.6,143.58,0.34]
[1718513233616,5.72,143.6,143.58,0.17]
[1718513233910,5.72,143.64,143.58,0.34]
[1718513234108,5.72,143.61,143.58,0.34]
[1718513238501,9.83745212,143.66,143.58,0.34]
[1718513238833,5.72,143.61,143.58,0.34]
[1718513239517,5.72,143.64,143.58,0.34]
[1718513239725,22.88,143.64,143.58,0.34]
[1718513249730,22.88,143.64,143.57,15.3498]
[1718513249731,5.72,143.59,143.57,15.0098]
[1718513249915,5.72,143.58,143.57,15.0098]
[1718513251103,5.72,143.58,143.57,15.3498]
[1718513252316,5.72,143.59,143.57,15.3498]
[1718513253934,7.26115572,143.63,143.57,15.3498]
[1718513254108,5.72,143.59,143.57,15.3498]
[1718513254432,5.72,143.6,143.57,15.3498]
[1718513257225,5.72,143.59,143.57,15.3498]
[1718513257546,5.72,143.58,143.57,15.3498]
[1718513257709,5.72,143.58,143.57,15.6898]
[1718513257910,5.72,143.58,143.57,15.5198]
[1718513258434,5.72,143.58,143.57,0.17]
[1718513258615,5.72,143.58,143.55,0.17]
[1718513258806,5.72,143.58,143.55,0.68]
[1718513261355,14.98945572,143.63,143.55,0.68]
[1718513261637,5.72,143.58,143.55,0.68]
[1718513265973,18.8893,143.61,143.53,16.5894]
[1718513266261,5.72,143.54,143.53,16.5894]
[1718513267559,5.72,143.54,143.53,17.2694]
[1718513268894,5.72,143.55,143.53,17.2694]
[1718513273366,5.72,143.55,143.53,0.68]
[1718513273566,5.72,143.54,143.53,0.51]
[1718513273743,5.72,143.54,143.53,0.34]
[1718513276460,5.72,143.55,143.53,0.34]
[1718513280968,7.25573204,143.6,143.53,0.34]
[1718513281171,5.72,143.55,143.53,0.34]
[1718513282039,5.72,143.55,143.53,0.17]
[1718513282343,5.72,143.55,143.52,0.17]
[1718513282344,5.72,143.54,143.52,0.17]
[1718513282565,5.72,143.54,143.52,0.34]
[1718513282866,5.72,143.53,143.49,22.3976]
[1718513283063,5.72,143.53,143.49,16.2787]
[1718513283569,5.72,143.51,143.49,16.2787]
[1718513285460,48.26090029,143.57,143.5,0.17]
[1718513285461,5.72,143.52,143.5,0.17]
[1718513285660,5.72,143.52,143.5,0.34]
[1718513293474,25.38090029,143.57,143.5,0.34]
[1718513293677,48.26090029,143.57,143.5,0.34]
[1718513293967,5.72,143.53,143.5,0.34]
[1718513297459,48.26090029,143.57,143.5,0.34]
[1718513297460,45.68380029,143.57,143.5,0.34]
[1718513297658,5.72,143.54,143.51,0.34]
[1718513297969,5.72,143.52,143.5,0.34]
[1718513298551,5.72,143.51,143.5,0.34]
[1718513298967,5.72,143.52,143.5,0.34]
[1718513302074,53.41540029,143.57,143.48,0.17]
[1718513302255,5.72,143.52,143.48,0.34]
[1718513302575,5.72,143.51,143.49,0.17]